lending/lending_fUSD_20240928
["ID","MTS","AMOUNT","RATE_DAILY","PERIOD"]
[339383348,1727530232519,-47003.21576186,0.0001278,2]
[339383349,1727530232529,-7993.59743879,0.00012781,2]
[339383350,1727530232538,-59540.57710322,0.00012781,2]
[339383351,1727530232548,-9317.40299971,0.00012782,2]
[339383352,1727530232557,-53899.9845376,0.00012787,2]
[339383353,1727530232570,-689.30241408,0.00012787,2]
[339383354,1727530232592,-300.0,0.00012,2]
[339383356,1727530237416,-1187.62330539,0.00012,2]
[339383360,1727530237530,-485.28526725,0.00012,2]
[339383361,1727530237542,-460.89263148,0.00012,2]
[339383362,1727530237553,-903.83149778,0.00012,2]
[339383363,1727530237591,-362.78211077,0.00012,2]
[339383364,1727530237602,-14103.48224663,0.00012,2]
[339383365,1727530237651,-2247.35425871,0.00012,2]
[339383366,1727530237662,-1286.80714226,0.00012,2]
[339383367,1727530237672,-279.62,0.00012,2]
[339383368,1727530237710,-688.5,0.00012,2]
[339383369,1727530237721,-987.54270914,0.00012,2]
[339383370,1727530237734,-505.69121239,0.00012,2]
[339383371,1727530237744,-7807.49218914,0.00012,2]
[339383372,1727530237755,-617.96,0.00012,2]
[339383373,1727530237774,-1751.30531018,0.00012,2]
[339383374,1727530237790,-1003.96522071,0.00012,2]
[339383375,1727530237800,-4723.52338797,0.00012,2]
[339383398,1727530239393,-2809.89847193,0.00012,2]
[339383407,1727530239561,-521.59343028,0.00012,2]
[339383408,1727530239572,-41308.65656892,0.00012,2]
[339383409,1727530239582,-52687.21038951,0.00012787,2]
[339383410,1727530239618,-258.35953386,0.00012787,2]
[339383411,1727530239714,-453.16590618,0.00012787,2]
[339383415,1727530242468,-2749.97234033,0.00012787,2]
[339383416,1727530242479,-2380.95156435,0.00012787,2]
[339383417,1727530242491,-195955.38948025,0.00012787,2]
[339383418,1727530242501,-9317.40299971,0.00012788,2]
[339383419,1727530242510,-7270.07687344,0.00012791,2]
[339383420,1727530242527,-723.52056535,0.00012791,2]
[339383421,1727530242539,-1053.69018021,0.00012792,2]
[339383422,1727530242549,-9317.40299971,0.00012793,2]
[339383423,1727530242558,-200.0,0.00012793,2]
[339383424,1727530242567,-5794.83481034,0.00012794,2]
[339383427,1727530245539,-1861.31775,0.00012794,2]
[339383428,1727530245885,-621.13087429,0.00012794,2]
[339383533,1727530538550,167.69,0.00010959,2]
[339383534,1727530652677,937.46568521,0.00022,120]
[339383541,1727530798781,1200.0,0.0002,60]
[339383542,1727530816446,1831.95252884,0.0002,61]
[339383546,1727530897418,211.62,9.271e-05,2]
[339383549,1727531100472,3214.39469956,0.00011104,2]
[339383550,1727531100501,20685.60530044,0.00011104,2]
[339383551,1727531105174,887.0,0.00022,120]
[339383552,1727531108656,250.0,0.00011047,2]
[339383579,1727531134290,1000.0,0.000111,2]
[339383580,1727531146965,614.38,0.00011109,2]
[339383581,1727531173825,208.72,0.00010959,2]
[339383582,1727531178889,961.22251782,0.00011088,2]
[339383856,1727531364160,250.0,0.00011087,2]
[339383858,1727531372427,500.93,0.00011105,2]
[339383885,1727531431682,-619.94,0.00011114,2]
[339383886,1727531431692,-200.0,0.00011123,2]
[339383887,1727531431703,-156.59,0.00011126,2]
[339383888,1727531431716,-2715.52,0.00011137,2]
[339383889,1727531431727,-150.0,0.00011142,2]
[339383890,1727531431738,-250.0,0.00011144,2]
[339383891,1727531431749,-500.0,0.00011157,2]
[339383892,1727531431759,-263.27,0.00011166,2]
[339383893,1727531431769,-771.11,0.00011178,2]
[339383894,1727531431780,-1493.98,0.00011188,2]
[339383895,1727531431791,-150.0,0.00011329,2]
[339383896,1727531431802,-2935.89,0.00011329,2]
[339383897,1727531431814,-1728.77,0.0001138,2]
[339383898,1727531431824,-499.99,0.0001138,2]
[339383899,1727531431836,-299.99,0.00011381,2]
[339383900,1727531431850,-4203.39,0.00011381,2]
[339383901,1727531431860,-2751.0,0.00011507,2]
[339383902,1727531431871,-211.62,0.00011535,2]
[339383903,1727531431883,-177.7,0.00011543,2]
[339383904,1727531431894,-24755.88,0.00011553,2]
[339383905,1727531431906,-150.0,0.00011563,2]
[339383906,1727531431917,-150.0,0.00011564,2]
[339383907,1727531431927,-150.0,0.00011564,2]
[339383908,1727531431939,-150.0,0.00011564,2]
[339383909,1727531431950,-150.0,0.00011564,2]
[339383910,1727531431961,-500.0,0.000116,2]
[339383912,1727531431973,-195.92,0.00011641,2]
[339383914,1727531431983,-150.0,0.00011671,2]
[339383915,1727531431993,-300.0,0.00011684,2]
[339383916,1727531432004,-533.72,0.000117,2]
[339383917,1727531432014,-533.72,0.000117,2]
[339383918,1727531432025,-533.72,0.000117,2]
[339383919,1727531432035,-533.72,0.000117,2]
[339383920,1727531432045,-533.72,0.000117,2]
[339383921,1727531432056,-533.72,0.000117,2]
[339383922,1727531432066,-533.72,0.000117,2]
[339383923,1727531432078,-533.72,0.000117,2]
[339383924,1727531432088,-172.97,0.00011725,2]
[339383926,1727531432099,-150.0,0.00011779,2]
[339383927,1727531432110,-150.0,0.00011779,2]
[339383928,1727531432121,-3009.25564287,0.00011834,2]
[339383929,1727531432133,-178.01,0.00011884,2]
[339383930,1727531432143,-150.0,0.00011886,2]
[339383931,1727531432154,-150.0,0.00011886,2]
[339383932,1727531432165,-3154.8562,0.000119,2]
[339383933,1727531432175,-3497.4041,0.000119,2]
[339383934,1727531432184,-207.07,0.000119,2]
[339383935,1727531432194,-500.0,0.000119,2]
[339383936,1727531432203,-500.0,0.000119,2]
[339383937,1727531432213,-500.0,0.000119,2]
[339383938,1727531432223,-500.0,0.000119,2]
[339383939,1727531432233,-558.11,0.000119,2]
[339383940,1727531432244,-500.0,0.000119,2]
[339383941,1727531432254,-500.0,0.000119,2]
[339383942,1727531432264,-500.0,0.000119,2]
[339383943,1727531432273,-501.34,0.000119,2]
[339383944,1727531432284,-533.72,0.00011973,2]
[339383945,1727531432294,-533.72,0.00011973,2]
[339383946,1727531432304,-533.72,0.00011973,2]
[339383947,1727531432315,-533.72,0.00011973,2]
[339383948,1727531432326,-533.72,0.00011973,2]
[339383949,1727531432336,-533.72,0.00011973,2]
[339383950,1727531432346,-533.72,0.00011973,2]
[339383951,1727531432356,-150.0,0.00011993,2]
[339383952,1727531432366,-150.0,0.00011993,2]
[339383953,1727531432376,-150.0,0.000121,2]
[339383954,1727531432387,-150.0,0.00012207,2]
[339383955,1727531432397,-150.0,0.00012207,2]
[339383956,1727531432409,-150.0,0.00012207,2]
[339383957,1727531432419,-150.0,0.00012207,2]
[339383958,1727531432429,-150.0,0.00012314,2]
[339383959,1727531432439,-174.160809,0.00012414,2]
[339383960,1727531432450,-150.0,0.00012421,2]
[339383961,1727531432461,-150.0,0.00012421,2]
[339383962,1727531432471,-1000.0,0.00012488,2]
[339383963,1727531432481,-150.0,0.00012528,2]
[339383964,1727531432491,-150.0,0.00012528,2]
[339383965,1727531432501,-263.27,0.00012562,2]
[339383966,1727531432510,-163.0,0.00012627,2]
[339383967,1727531432519,-150.0,0.00012635,2]
[339383968,1727531432529,-150.0,0.00012635,2]
[339383969,1727531432538,-177.7,0.00012685,2]
[339383970,1727531432548,-290.35282318,0.00012694,2]
[339383971,1727531432557,-329.12673941,0.00012695,2]
[339383972,1727531432566,-5199.3754,0.00012695,2]
[339383973,1727531432576,-164.93870189,0.00012697,2]
[339383974,1727531432586,-246.94738212,0.00012697,2]
[339383975,1727531432596,-318.814,0.00012699,2]
[339383976,1727531432607,-290.35282315,0.00012717,2]
[339383977,1727531432618,-246.94738208,0.00012723,2]
[339383978,1727531432628,-290.35282315,0.0001274,2]
[339383979,1727531432639,-150.0,0.00012742,2]
[339383980,1727531432651,-246.94738208,0.00012749,2]
[339383981,1727531432661,-290.35282315,0.00012763,2]
[339383982,1727531432672,-246.94738208,0.00012774,2]
[339383983,1727531432682,-177.7,0.00012784,2]
[339383984,1727531432691,-290.35282315,0.00012786,2]
[339383985,1727531432701,-5774.04380723,0.00012794,2]
[339383986,1727531432714,-7575.69371319,0.00012794,2]
[339383987,1727531432728,-1200.7981108,0.00012794,2]
[339383988,1727531432744,-303.4456781,0.00012794,2]
[339383989,1727531437668,-229.61404083,0.00012152,2]
[339383990,1727531437679,-944.37302731,0.00012794,2]
[339383991,1727531437691,-2065.88764727,0.00012794,2]
[339383993,1727531437833,-5138.70794274,0.00012794,2]
[339383994,1727531437943,-15757.94916,0.00012794,2]
[339384001,1727531439864,-77910.19379907,0.00012794,2]
[339384002,1727531439876,-1933.87550915,0.00012794,2]
[339384003,1727531439890,-691.14972843,0.00012794,2]
[339384004,1727531439903,-3615.256768,0.00012794,2]
[339384005,1727531442935,-800.89537267,0.00012794,2]
[339384008,1727531445782,-533.72,0.000123,2]
[339384009,1727531445793,-1651.94137875,0.00012794,2]
[339384010,1727531445838,-1320.48470199,0.00012794,2]
[339384011,1727531446005,-458.52,0.00012794,2]
[339384012,1727531446062,-328.465,0.00012794,2]
[339384047,1727531642791,354.7385666,0.00022,120]
[339384049,1727531733541,2092.18640948,0.00021,60]
[339384050,1727531786671,196.84,0.00010959,2]
[339384051,1727531943229,209.18,9.85e-05,2]
[339384053,1727532237423,2875.0,0.00022,120]
[339384128,1727532514385,198.72,9.629e-05,2]
[339384179,1727532632154,-250.0,0.00011505,2]
[339384180,1727532632163,-2049.1,0.00011515,2]
[339384181,1727532632172,-250.0,0.00011521,2]
[339384182,1727532632182,-150.0,0.00011564,2]
[339384183,1727532632191,-150.0,0.00011564,2]
[339384184,1727532632200,-150.0,0.00011564,2]
[339384185,1727532632210,-150.0,0.00011564,2]
[339384186,1727532632219,-200.0,0.00011711,2]
[339384187,1727532632228,-600.0,0.00011711,2]
[339384188,1727532632237,-476.89,0.00011736,2]
[339384189,1727532632246,-300.0,0.00011741,2]
[339384190,1727532632255,-158.84,0.00011742,2]
[339384191,1727532632265,-1626.068581,0.00011742,2]
[339384192,1727532632280,-2251.42259718,0.00011742,2]
[339384193,1727532632291,-16220.67072936,0.00011742,2]
[339384194,1727532632302,-324.2343219,0.00011742,2]
[339384198,1727532638067,-341.58269972,0.00011742,2]
[339384238,1727532639865,-1279.32942339,0.00011742,2]
[339384239,1727532639876,-373.54171153,0.00011742,2]
[339384243,1727532639924,-1483.14993592,0.00011742,2]
[339384245,1727532639934,-231.59,0.00011753,2]
[339384247,1727532639943,-214.04982189,0.00011787,2]
[339384249,1727532639955,-185.95017811,0.00011787,2]
[339384251,1727532639963,-75.55723469,0.00011839,2]
[339384253,1727532639975,-311.0679983,0.00011839,2]
[339384255,1727532639991,-36.76476701,0.00011839,2]
[339384257,1727532640000,-861.8643932,0.0001189,2]
[339384259,1727532640010,-198.72,0.00011893,2]
[339384261,1727532640020,-500.0,0.000119,2]
[339384263,1727532640029,-500.0,0.000119,2]
[339384265,1727532640038,-398.23798295,0.000119,2]
[339384270,1727532640102,-101.76201705,0.000119,2]
[339384271,1727532640111,-525.88,0.000119,2]
[339384272,1727532640121,-500.0,0.000119,2]
[339384274,1727532640130,-500.0,0.000119,2]
[339384275,1727532640140,-500.0,0.000119,2]
[339384277,1727532640149,-489.08364627,0.000119,2]
[339384279,1727532640160,-10.91635373,0.000119,2]
[339384281,1727532640170,-500.0,0.000119,2]
[339384283,1727532640179,-109.34392202,0.000119,2]
[339384285,1727532640190,-390.65607798,0.000119,2]
[339384287,1727532640200,-159.70049742,0.000119,2]
[339384290,1727532640219,-340.29950258,0.000119,2]
[339384292,1727532640230,-500.0,0.000119,2]
[339384294,1727532640239,-500.0,0.000119,2]
[339384295,1727532640248,-66.40700334,0.000119,2]
[339384335,1727532643065,-433.59299666,0.000119,2]
[339384336,1727532643075,-500.0,0.000119,2]
[339384337,1727532643084,-500.0,0.000119,2]
[339384338,1727532643093,-52.49036315,0.000119,2]
[339384339,1727532643177,-447.50963685,0.000119,2]
[339384340,1727532643186,-500.0,0.000119,2]
[339384341,1727532643196,-500.0,0.000119,2]
[339384342,1727532643205,-500.0,0.000119,2]
[339384343,1727532643215,-500.0,0.000119,2]
[339384344,1727532643225,-500.0,0.000119,2]
[339384345,1727532643234,-500.0,0.000119,2]
[339384346,1727532643244,-500.0,0.000119,2]
[339384347,1727532643254,-500.0,0.000119,2]
[339384348,1727532643263,-500.0,0.000119,2]
[339384349,1727532643281,-66.11899577,0.000119,2]
[339384350,1727532643294,-433.88100423,0.000119,2]
[339384351,1727532643303,-500.0,0.000119,2]
[339384352,1727532643312,-500.0,0.000119,2]
[339384353,1727532643322,-500.0,0.000119,2]
[339384354,1727532643331,-500.0,0.000119,2]
[339384355,1727532643340,-500.0,0.000119,2]
[339384356,1727532643350,-500.0,0.000119,2]
[339384357,1727532643359,-500.0,0.000119,2]
[339384358,1727532643371,-500.0,0.000119,2]
[339384359,1727532643380,-500.0,0.000119,2]
[339384360,1727532643389,-500.0,0.000119,2]
[339384361,1727532643398,-500.0,0.000119,2]
[339384362,1727532643409,-500.0,0.000119,2]
[339384363,1727532643418,-500.0,0.000119,2]
[339384364,1727532643427,-500.0,0.000119,2]
[339384365,1727532643437,-264.18291133,0.000119,2]
[339384377,1727533103894,178.84,9.316e-05,2]
[339384382,1727533264662,500.0,0.00022,120]
[339384410,1727533704842,169.89,9.217e-05,2]
[339384445,1727533754039,150.0,0.00022,120]
[339384453,1727533767782,4734.79935717,0.00022,120]
[339384461,1727533832068,-480.0,0.0001112,2]
[339384463,1727533832078,-106.31478919,0.00011127,2]
[339384465,1727533832090,-78.95521081,0.00011127,2]
[339384470,1727533832100,-250.0,0.00011155,2]
[339384473,1727533832113,-250.0,0.00011163,2]
[339384476,1727533832126,-660.41321775,0.00011169,2]
[339384478,1727533832136,-197.88678225,0.00011169,2]
[339384480,1727533832145,-270.21069737,0.000112,2]
[339384483,1727533832173,-249.78930263,0.000112,2]
[339384485,1727533832183,-120.40331729,0.00011277,2]
[339384487,1727533832193,-118.03668271,0.00011277,2]
[339384489,1727533832203,-157.96,0.00011301,2]
[339384491,1727533832212,-169.89,0.00011481,2]
[339384493,1727533832222,-76.0900226,0.00011515,2]
[339384496,1727533832233,-73.9099774,0.00011515,2]
[339384497,1727533832243,-180.53174817,0.00011515,2]
[339384498,1727533832252,-150.0,0.00011515,2]
[339384499,1727533832262,-150.0,0.00011515,2]
[339384500,1727533832271,-499.99,0.00011515,2]
[339384501,1727533832280,-205.15545449,0.00011515,2]
[339384502,1727533832291,-920.14860293,0.00011515,2]
[339384503,1727533832326,-2872.40594258,0.00011515,2]
[339384504,1727533832337,-341.03503576,0.00011658,2]
[339384505,1727533832347,-150.0,0.00011675,2]
[339384506,1727533832356,-186.94,0.00011769,2]
[339384507,1727533832369,-186.94,0.00011772,2]
[339384508,1727533832379,-186.94,0.00011775,2]
[339384509,1727533832389,-300.0,0.00011776,2]
[339384510,1727533832398,-186.94,0.00011778,2]
[339384511,1727533832408,-186.94,0.00011781,2]
[339384512,1727533832417,-186.94,0.00011784,2]
[339384513,1727533832427,-186.94,0.00011787,2]
[339384514,1727533832436,-186.94,0.0001179,2]
[339384515,1727533832446,-186.94,0.00011794,2]
[339384516,1727533832455,-186.94,0.00011797,2]
[339384517,1727533832465,-186.94,0.000118,2]
[339384518,1727533832474,-186.94,0.00011803,2]
[339384519,1727533832483,-186.94,0.00011806,2]
[339384520,1727533832493,-150.0,0.00011806,2]
[339384521,1727533832502,-186.94,0.00011809,2]
[339384522,1727533832511,-186.94,0.00011812,2]
[339384523,1727533832520,-186.94,0.00011815,2]
[339384524,1727533832530,-186.94,0.00011818,2]
[339384525,1727533832539,-186.94,0.00011821,2]
[339384526,1727533832548,-186.94,0.00011824,2]
[339384527,1727533832557,-186.94,0.00011828,2]
[339384528,1727533832568,-174.82,0.00011834,2]
[339384529,1727533832577,-150.0,0.00011835,2]
[339384530,1727533832587,-412.6014,0.00011863,2]
[339384531,1727533832596,-235.81708867,0.000119,2]
[339384532,1727533832605,-138.03839941,0.000119,2]
[339384533,1727533832618,-361.96160059,0.000119,2]
[339384534,1727533832627,-500.0,0.000119,2]
[339384535,1727533832637,-500.0,0.000119,2]
[339384536,1727533832646,-500.0,0.000119,2]
[339384537,1727533832656,-191.91,0.000119,2]
[339384538,1727533832665,-280.81198642,0.000119,2]
[339384539,1727533832676,-219.18801358,0.000119,2]
[339384540,1727533832685,-137.10287042,0.000119,2]
[339384541,1727533832696,-362.89712958,0.000119,2]
[339384542,1727533832706,-500.0,0.000119,2]
[339384543,1727533832715,-500.0,0.000119,2]
[339384544,1727533832725,-500.0,0.000119,2]
[339384545,1727533832734,-500.0,0.000119,2]
[339384546,1727533832743,-500.0,0.000119,2]
[339384547,1727533832752,-500.0,0.000119,2]
[339384548,1727533832761,-500.0,0.000119,2]
[339384549,1727533832771,-500.0,0.000119,2]
[339384550,1727533832780,-500.0,0.000119,2]
[339384551,1727533832789,-500.0,0.000119,2]
[339384552,1727533832798,-500.0,0.000119,2]
[339384553,1727533832808,-500.0,0.000119,2]
[339384554,1727533832817,-374.08,0.000119,2]
[339384555,1727533832826,-500.0,0.000119,2]
[339384556,1727533832835,-500.0,0.000119,2]
[339384557,1727533832844,-500.0,0.000119,2]
[339384558,1727533832853,-500.0,0.000119,2]
[339384559,1727533832863,-500.0,0.000119,2]
[339384560,1727533832872,-500.0,0.000119,2]
[339384561,1727533832881,-500.0,0.000119,2]
[339384562,1727533832890,-500.0,0.000119,2]
[339384563,1727533832902,-500.0,0.000119,2]
[339384564,1727533832913,-500.0,0.000119,2]
[339384565,1727533832923,-500.0,0.000119,2]
[339384566,1727533832933,-521.64,0.000119,2]
[339384567,1727533832942,-522.99,0.000119,2]
[339384568,1727533832953,-500.0,0.000119,2]
[339384569,1727533832965,-150.45199177,0.00011967,2]
[339384570,1727533832975,-500.0,0.00011967,2]
[339384571,1727533832984,-419.1848797,0.00011967,2]
[339384572,1727533832993,-500.0,0.00011967,2]
[339384573,1727533833002,-515.6669376,0.00011967,2]
[339384574,1727533833011,-150.0,0.00011995,2]
[339384575,1727533833021,-533.72,0.00012,2]
[339384576,1727533833031,-533.72,0.00012,2]
[339384577,1727533833040,-533.72,0.00012,2]
[339384578,1727533833049,-533.72,0.00012,2]
[339384579,1727533833058,-533.72,0.00012,2]
[339384580,1727533833067,-533.72,0.00012,2]
[339384581,1727533833076,-175.2,0.00012,2]
[339384582,1727533833087,-150.0,0.00012155,2]
[339384583,1727533833096,-533.72,0.000123,2]
[339384584,1727533833106,-533.72,0.000123,2]
[339384585,1727533833116,-533.72,0.000123,2]
[339384586,1727533833126,-533.72,0.000123,2]
[339384587,1727533833135,-533.72,0.000123,2]
[339384588,1727533833145,-533.72,0.000123,2]
[339384589,1727533833154,-533.72,0.000123,2]
[339384590,1727533833163,-533.72,0.000123,2]
[339384591,1727533833173,-533.72,0.000123,2]
[339384592,1727533833182,-533.72,0.000123,2]
[339384593,1727533833191,-150.0,0.00012315,2]
[339384594,1727533833200,-533.72,0.000124,2]
[339384595,1727533833209,-174.164986,0.00012414,2]
[339384596,1727533833219,-150.0,0.00012475,2]
[339384597,1727533833229,-533.72,0.000125,2]
[339384598,1727533833240,-480.0,0.0001251,2]
[339384599,1727533833249,-185.27,0.00012518,2]
[339384600,1727533833259,-533.72,0.000126,2]
[339384601,1727533833269,-533.72,0.000126,2]
[339384602,1727533833278,-533.72,0.000126,2]
[339384603,1727533833288,-520.0,0.000126,2]
[339384604,1727533833297,-150.0,0.00012635,2]
[339384605,1727533833306,-608.32035279,0.00012636,2]
[339384606,1727533833316,-608.32035276,0.00012659,2]
[339384607,1727533833325,-30578.675516,0.0001266,2]
[339384608,1727533833335,-608.32035276,0.00012683,2]
[339384609,1727533833344,-500.0,0.00012692,2]
[339384610,1727533833353,-185.71939874,0.00012693,2]
[339384611,1727533833363,-369.39451203,0.00012693,2]
[339384612,1727533833372,-224.05243675,0.00012693,2]
[339384613,1727533833382,-154.93022132,0.00012693,2]
[339384614,1727533833391,-150.0,0.000127,2]
[339384615,1727533833400,-171.123,0.00012705,2]
[339384616,1727533833409,-354.97,0.00012705,2]
[339384617,1727533833419,-608.32035276,0.00012706,2]
[339384618,1727533833428,-157.96,0.00012714,2]
[339384619,1727533833437,-608.32035276,0.0001273,2]
[339384620,1727533833446,-1000.0,0.0001273,2]
[339384621,1727533833455,-1000.0,0.0001273,2]
[339384622,1727533833465,-1000.0,0.0001273,2]
[339384623,1727533833474,-713.9338,0.0001273,2]
[339384624,1727533833486,-608.32035276,0.00012753,2]
[339384625,1727533833495,-608.32035276,0.00012777,2]
[339384626,1727533833504,-150.79,0.0001278,2]
[339384627,1727533833513,-34670.54272008,0.00012787,2]
[339384630,1727533838245,-154.9302213,0.00012747,2]
[339384631,1727533838254,-16893.60977871,0.00012787,2]
[339384632,1727533838267,-3163.29177813,0.00012787,2]
[339384633,1727533838278,-11092.6700266,0.00012787,2]
[339384634,1727533838288,-25151.29898074,0.00012787,2]
[339384635,1727533838338,-14083.73582,0.00012787,2]
[339384636,1727533838351,-4498.0,0.00012787,2]
[339384637,1727533838362,-1710.33992832,0.00012787,2]
[339384638,1727533838375,-1233.64916876,0.00012787,2]
[339384702,1727533840252,-2450.68616128,0.00012787,2]
[339384703,1727533840264,-262.27725,0.00012787,2]
[339384704,1727533840403,-213450.07842636,0.00012787,2]
[339384705,1727533840413,-150.79,0.00012787,2]
[339384706,1727533840423,-8037.0268509,0.00012787,2]
[339384707,1727533840432,-500.0,0.00012789,2]
[339384708,1727533840441,-500.0,0.00012789,2]
[339384709,1727533840450,-500.0,0.00012789,2]
[339384710,1727533840460,-500.0,0.00012789,2]
[339384711,1727533840470,-620.19792535,0.00012789,2]
[339384712,1727533840479,-156.0,0.0001279,2]
[339384713,1727533840489,-700000.0,0.0001279,3]
[339384714,1727533840499,-500.0,0.00012793,2]
[339384715,1727533840508,-300.02,0.00012793,2]
[339384716,1727533840517,-8405.66584511,0.00012793,2]
[339384717,1727533840527,-504.17801678,0.00012793,2]
[339384718,1727533840537,-173325.37138683,0.00012794,2]
[339384719,1727533840546,-1000.0,0.00012794,2]
[339384720,1727533840555,-1000.0,0.00012794,2]
[339384721,1727533840564,-1000.0,0.00012794,2]
[339384722,1727533840573,-1000.0,0.00012794,2]
[339384723,1727533840582,-1000.0,0.00012794,2]
[339384724,1727533840592,-1000.0,0.00012794,2]
[339384725,1727533840602,-1000.0,0.00012794,2]
[339384726,1727533840611,-1000.0,0.00012794,2]
[339384727,1727533840621,-1000.0,0.00012794,2]
[339384728,1727533840630,-1000.0,0.00012794,2]
[339384729,1727533840640,-1000.0,0.00012794,2]
[339384730,1727533840650,-1000.0,0.00012794,2]
[339384731,1727533840659,-1000.0,0.00012794,2]
[339384732,1727533840668,-1000.0,0.00012794,2]
[339384733,1727533840678,-1000.0,0.00012794,2]
[339384734,1727533840687,-1000.0,0.00012794,2]
[339384735,1727533840696,-1000.0,0.00012794,2]
[339384736,1727533840705,-1000.0,0.00012794,2]
[339384737,1727533840714,-1000.0,0.00012794,2]
[339384738,1727533840723,-1000.0,0.00012794,2]
[339384739,1727533840732,-1000.0,0.00012794,2]
[339384740,1727533840742,-1000.0,0.00012794,2]
[339384741,1727533840751,-1000.0,0.00012794,2]
[339384742,1727533840761,-1000.0,0.00012794,2]
[339384743,1727533840770,-690.07839849,0.00012794,2]
[339384744,1727533840780,-392.6737774,0.00012794,2]
[339384745,1727533840790,-168.28876175,0.00012794,2]
[339384746,1727533840799,-59540.57710322,0.00012794,2]
[339384747,1727533840807,-186.45225828,0.00012795,2]
[339384748,1727533840816,-229.70967874,0.00012795,2]
[339384749,1727533840826,-309074.33616616,0.00012795,2]
[339384750,1727533840836,-7993.59743879,0.00012795,2]
[339384751,1727533840845,-1542.9853125,0.00012796,2]
[339384752,1727533840854,-7993.59743879,0.00012796,2]
[339384753,1727533840863,-309074.33616616,0.00012797,2]
[339384754,1727533840873,-9317.40299971,0.00012797,2]
[339384755,1727533840883,-59540.57710322,0.00012797,2]
[339384756,1727533840893,-59540.57710322,0.00012798,2]
[339384757,1727533840905,-1133.03870407,0.00012798,3]
[339384758,1727533840914,-288.319,0.00012798,2]
[339384759,1727533840923,-285.663,0.00012798,2]
[339384760,1727533840933,-164.0,0.00012798,2]
[339384761,1727533840943,-164.421,0.00012798,2]
[339384762,1727533840952,-152.445,0.00012798,2]
[339384763,1727533840961,-151.565,0.00012798,2]
[339384764,1727533840971,-156.541,0.00012798,2]
[339384765,1727533840982,-250.0,0.00012798,2]
[339384766,1727533840992,-9317.40299971,0.00012799,2]
[339384767,1727533841002,-157.63939403,0.00012799,2]
[339384768,1727533841011,-309074.33616616,0.00012799,2]
[339384769,1727533841021,-200.0,0.000128,2]
[339384770,1727533841030,-223.0,0.000128,4]
[339384771,1727533841039,-300.0,0.000128,2]
[339384772,1727533841049,-227.0,0.000128,2]
[339384773,1727533841059,-170.41454089,0.000128,2]
[339384774,1727533841068,-170.91,0.000128,2]
[339384775,1727533841078,-167.00665622,0.000128,2]
[339384776,1727533841087,-167.5,0.000128,2]
[339384777,1727533841097,-169.14252304,0.000128,2]
[339384778,1727533841106,-169.64,0.000128,2]
[339384779,1727533841116,-608.32035276,0.000128,2]
[339384780,1727533841125,-359.0,0.000128,2]
[339384781,1727533841135,-198.54068962,0.000128,2]
[339384782,1727533841144,-1471.24520656,0.000128,2]
[339384783,1727533841153,-504.31053907,0.000128,2]
[339384784,1727533841163,-238.0,0.000128,4]
[339384785,1727533841172,-1000.0,0.000128,2]